bitfinex/quotes_SOLUSD_20241118
["timestamp","ask_amount","ask_price","bid_price","bid_amount"]
[1731909892607,0.21916462,243.55,243.49,12.15446471]
[1731909893316,0.21916462,243.56,243.49,12.15446471]
[1731909893806,0.12549,243.55,243.5,4.1067]
[1731909894998,35.37396471,243.61,243.51,12.15446471]
[1731909895594,0.09367462,243.6,243.51,12.15446471]
[1731909895807,0.09367462,243.6,243.52,4.1064]
[1731909896315,0.09367462,243.58,243.52,4.1064]
[1731909897990,0.21916462,243.58,243.52,14.3724]
[1731909898186,0.09367462,243.56,243.52,14.3724]
[1731909898399,0.09367462,243.56,243.5,4.1066]
[1731909900808,12.24813933,243.52,243.47,10.2679]
[1731909901019,0.09367462,243.5,243.43,12.15446471]
[1731909901325,0.09367462,243.48,243.42,10.2702]
[1731909902320,0.09367462,243.48,243.42,14.3782]
[1731909902502,0.09367462,243.48,243.43,12.15446471]
[1731909903298,172.35446471,243.6,243.47,12.15446471]
[1731909903485,27.106,243.61,243.54,12.15446471]
[1731909903684,30.0,243.58,243.54,12.15446471]
[1731909903921,27.106,243.61,243.48,12.15446471]
[1731909903922,0.09367462,243.6,243.56,12.15446471]
[1731909904206,27.106,243.61,243.56,12.15446471]
[1731909904789,24.027864,243.57,243.38,19.8795]
[1731909904999,0.21916462,243.5,243.42,12.15446471]
[1731909905297,12.15446471,243.49,243.4,12.15446471]
[1731909905491,0.09367462,243.48,243.4,12.15446471]
[1731909905905,0.09367462,243.48,243.43,10.2696]
[1731909906102,0.09367462,243.46,243.38,10.2718]
[1731909906286,0.09367462,243.46,243.39,12.15446471]
[1731909907516,0.21916462,243.46,243.39,12.15446471]
[1731909908088,0.12549,243.43,243.38,10.2718]
[1731909908307,0.21916462,243.42,243.35,12.15446471]
[1731909908997,0.21916462,243.4,243.33,12.15446471]
[1731909909526,0.21916462,243.38,243.32,10.2741]
[1731909909810,0.09367462,243.36,243.32,10.2741]
[1731909910017,0.21916462,243.36,243.32,10.2741]
[1731909911603,0.21916462,243.36,243.31,12.15446471]
[1731909911915,0.21916462,243.34,243.29,12.15446471]
[1731909913720,0.21916462,243.34,243.29,16.26456471]
[1731909918001,0.21916462,243.34,243.27,10.2766]
[1731909918203,0.21916462,243.34,243.28,12.15446471]
[1731909918404,0.21916462,243.34,243.27,10.2766]
[1731909918405,0.21916462,243.3,243.23,4.1113]
[1731909918633,0.09367462,243.28,243.23,4.1113]
[1731909918948,0.21916462,243.28,243.23,4.1113]
[1731909919314,0.12549,243.32,243.24,12.15446471]
[1731909919555,0.12549,243.32,243.26,12.15446471]
[1731909920040,0.09367462,243.31,243.26,12.15446471]
[1731909920209,0.09367462,243.31,243.27,4.1106]
[1731909920407,0.09367462,243.31,243.27,14.3872]
[1731909920843,4.1088,243.38,243.27,14.3872]
[1731909920844,0.12549,243.36,243.3,12.15446471]
[1731909921008,0.09367462,243.35,243.28,12.15446471]
[1731909921209,0.21916462,243.35,243.28,12.15446471]
[1731909922028,0.21916462,243.35,243.29,4.1103]
[1731909922616,37.83856471,243.37,243.3,12.15446471]
[1731909922617,25.6841,243.37,243.3,12.15446471]
[1731909923247,25.6841,243.37,243.32,12.15446471]
[1731909923914,0.09367462,243.36,243.3,12.15446471]
[1731909924116,0.09367462,243.36,243.28,12.15446471]
[1731909924339,0.21916462,243.34,243.24,26.54346471]
[1731909924543,0.09367462,243.32,243.24,26.54346471]
[1731909924715,0.09367462,243.3,243.24,26.54346471]
[1731909925055,0.09367462,243.3,243.24,14.389]
[1731909925342,12.27995471,243.33,243.24,26.54346471]
[1731909925637,0.09367462,243.32,243.24,26.54346471]
[1731909926844,0.12549,243.34,243.26,12.15446471]
[1731909927242,0.09367462,243.33,243.26,12.15446471]
[1731909927449,0.12549,243.32,243.24,26.54346471]
[1731909927631,0.09367462,243.31,243.24,26.54346471]
[1731909929953,171.25446471,243.36,243.28,12.15446471]
[1731909930250,0.34465462,243.35,243.26,12.15446471]
[1731909930434,0.34465462,243.35,243.24,14.389]
[1731909930435,0.34465462,243.33,243.24,26.54346471]
[1731909932736,0.09367462,243.31,243.22,12.15446471]
[1731909932957,0.09367462,243.27,243.2,12.15446471]
[1731909933336,0.09367462,243.27,243.18,47.10756471]
[1731909933654,0.09367462,243.27,243.19,20.0]
[1731909933823,0.09367462,243.27,243.18,14.3925]
[1731909933824,0.21916462,243.25,243.18,14.3925]
[1731909934023,0.09367462,243.23,243.18,14.3925]
[1731909934331,12.15446471,243.22,243.18,14.3925]
[1731909934852,0.09367462,243.21,243.18,10.2804]
[1731909935049,0.09367462,243.21,243.04,5.62185056]
[1731909935050,0.21916462,243.19,243.13,10.2824]
[1731909935232,12.15446471,243.18,243.13,14.3954]
[1731909935652,0.09367462,243.18,243.13,14.3954]
[1731909935850,0.12549,243.22,243.14,12.15446471]
[1731909936036,159.1,243.23,243.14,12.15446471]
[1731909936431,0.09367462,243.22,243.13,14.3954]
[1731909936740,0.09367462,243.22,243.14,12.15446471]
[1731909937350,159.1,243.23,243.14,12.15446471]
[1731909937351,159.1,243.23,243.15,14.3943]
[1731909937654,39.55895471,243.26,243.16,12.15446471]
[1731909938032,0.21916462,243.25,243.16,12.15446471]
[1731909938846,0.1,243.34,243.08,20.5688]
[1731909938847,12.15446471,243.3,243.2,12.15446471]
[1731909939051,0.09367462,243.29,243.22,12.15446471]
[1731909939829,27.0346,243.31,243.22,12.15446471]
[1731909940030,27.0346,243.31,243.24,12.15446471]
[1731909940638,0.09367462,243.3,243.24,12.15446471]
[1731909941054,0.09367462,243.3,243.25,4.1109]
[1731909941248,27.0346,243.31,243.25,4.1109]
[1731909941929,0.21916462,243.3,243.25,14.3883]
[1731909946260,0.21916462,243.3,243.22,12.15446471]
[1731909948353,0.09367462,243.3,243.23,34.3896]
[1731909948551,0.12549,243.3,243.24,12.15446471]
[1731909949063,0.21916462,243.31,243.24,12.15446471]
[1731909949247,0.21916462,243.31,243.26,12.15446471]
[1731909949647,0.21916462,243.31,243.27,14.3872]
[1731909950849,0.25098,243.34,243.26,12.15446471]
[1731909951062,159.1,243.36,243.32,12.15446471]
[1731909951266,159.1,243.36,243.27,18.281]
[1731909951267,166.5195,243.5,243.36,20.0]
[1731909951449,7.4195,243.5,243.42,12.15446471]
[1731909952268,0.09367462,243.44,243.28,23.52427525]
[1731909952467,0.09367462,243.44,243.36,12.15446471]
[1731909952775,0.09367462,243.42,243.35,20.0]
[1731909952945,159.19367462,243.42,243.34,14.383]
[1731909953347,0.09367462,243.36,243.28,22.43026471]
[1731909953558,12.15446471,243.39,243.3,12.15446471]
[1731909953746,0.12549,243.39,243.32,12.15446471]
[1731909954071,0.12549,243.46,243.36,12.15446471]
[1731909954256,0.12549,243.46,243.28,10.3758]
[1731909954257,171.25446471,243.46,243.38,12.15446471]
[1731909954452,0.09367462,243.45,243.36,12.15446471]
[1731909954668,18.8658,243.47,243.4,12.15446471]
[1731909954972,159.1,243.49,243.41,14.3789]
[1731909955146,0.09367462,243.49,243.42,12.15446471]
[1731909955850,0.09367462,243.49,243.41,14.3789]
[1731909955851,0.34465462,243.49,243.41,14.3789]
[1731909956351,24.12153862,243.49,243.41,10.2707]
[1731909956567,0.09367462,243.47,243.41,10.2707]
[1731909956872,0.09367462,243.47,243.34,38.8278]
[1731909956873,0.09367462,243.45,243.37,4.1089]
[1731909957174,0.34465462,243.43,243.35,26.53656471]
[1731909957347,159.44465462,243.43,243.35,14.3821]
[1731909958570,0.34465462,243.41,243.35,10.2729]
[1731909958743,159.44465462,243.41,243.35,10.2729]
[1731909958948,0.34465462,243.39,243.35,10.2729]
[1731909959456,0.34465462,243.39,243.29,12.15446471]
[1731909959773,0.34465462,243.37,243.29,12.15446471]
[1731909960153,0.34465462,243.37,243.27,12.15446471]
[1731909960346,0.09367462,243.33,243.27,12.15446471]
[1731909960546,0.09367462,243.33,243.26,4.1107]
[1731909960547,0.12549,243.32,243.26,4.1107]
[1731909960747,0.21916462,243.29,243.26,4.1107]
[1731909960971,0.21916462,243.29,243.25,10.2774]
[1731909960972,0.21916462,243.27,243.25,10.2774]
[1731909961172,0.21916462,243.26,243.25,10.2774]
[1731909963058,0.09367462,243.25,243.22,4.1114]
[1731909963378,0.09367462,243.23,243.2,4.1117]
[1731909963570,0.09367462,243.23,243.2,16.26616471]
[1731909964973,0.09367462,243.23,243.22,12.15446471]
[1731909965272,0.12549,243.24,243.22,12.15446471]
[1731909965481,159.1,243.32,243.22,12.15446471]
[1731909965773,159.1,243.34,243.26,12.15446471]
[1731909966754,0.09367462,243.32,243.26,12.15446471]
[1731909966971,0.09367462,243.32,243.26,16.26506471]
[1731909967482,0.09367462,243.3,243.26,16.26506471]
[1731909967679,0.21916462,243.3,243.26,16.26506471]
[1731909967979,20.0167,243.41,243.29,20.0]
[1731909968178,20.0167,243.41,243.34,12.15446471]
[1731909968363,12.24813933,243.4,243.3,12.15446471]
[1731909968761,0.09367462,243.38,243.3,12.15446471]
[1731909968979,0.09367462,243.36,243.28,12.15446471]
[1731909969275,0.09367462,243.34,243.28,12.15446471]
[1731909969586,0.21916462,243.32,243.3,12.15446471]
[1731909970185,0.21916462,243.34,243.3,12.15446471]
[1731909970483,0.21916462,243.34,243.32,12.15446471]
[1731909971195,20.0167,243.41,243.32,26.53856471]
[1731909971363,20.0167,243.41,243.34,12.15446471]
[1731909971567,20.0167,243.41,243.32,26.53856471]
[1731909971987,0.09367462,243.4,243.32,26.53856471]
[1731909972192,0.09367462,243.4,243.34,12.15446471]
[1731909972567,166.8518,243.42,243.36,12.15446471]
[1731909972568,7.7518,243.42,243.36,12.15446471]
[1731909972883,7.7518,243.42,243.32,14.3841]
[1731909972884,171.25446471,243.46,243.38,12.15446471]
[1731909973188,159.1,243.46,243.38,12.15446471]
[1731909973383,0.09367462,243.45,243.39,14.3801]
[1731909973985,0.09367462,243.43,243.36,12.15446471]
[1731909974168,0.21916462,243.41,243.34,12.15446471]
[1731909974364,0.21916462,243.37,243.33,14.3835]
[1731909975165,0.21916462,243.35,243.33,10.2739]
[1731909975369,0.21916462,243.35,243.31,4.1099]
[1731909975585,0.21916462,243.35,243.32,12.15446471]
[1731909976284,0.21916462,243.35,243.3,12.15446471]
[1731909976963,0.09367462,243.33,243.3,12.15446471]
[1731909977590,0.21916462,243.33,243.3,12.15446471]
[1731909977970,0.09367462,243.31,243.28,22.43056471]
[1731909978290,0.09367462,243.31,243.28,10.2761]
[1731909979387,0.09367462,243.34,243.28,10.2761]
[1731909979560,0.12549,243.33,243.28,10.2761]
[1731909979764,0.09367462,243.3,243.26,16.26516471]
[1731909980399,0.09367462,243.28,243.26,16.26516471]
[1731909981193,159.1,243.32,243.26,26.54216471]
[1731909981369,159.1,243.32,243.28,12.15446471]
[1731909981894,159.1,243.32,243.3,12.15446471]
[1731909982068,159.1,243.38,243.3,12.15446471]
[1731909982569,0.09367462,243.37,243.3,12.15446471]
[1731909983275,159.1,243.38,243.31,14.3848]
[1731909983990,0.09367462,243.36,243.31,14.3848]
[1731909984166,0.21916462,243.36,243.31,14.3848]
[1731909985093,0.09367462,243.34,243.31,14.3848]
[1731909985662,0.21916462,243.34,243.31,10.2749]
[1731909985885,0.09367462,243.32,243.29,4.1102]
[1731909986776,0.09367462,243.3,243.26,22.43136471]
[1731909986981,0.09367462,243.28,243.26,10.2769]
[1731909993269,0.21916462,243.28,243.24,12.15446471]
[1731909993479,0.21916462,243.26,243.22,16.26576471]
[1731909993683,0.09367462,243.26,243.22,16.26576471]
[1731909994089,159.44465462,243.28,243.22,16.26576471]
[1731909997508,24.12153862,243.28,243.14,18.2826]
[1731909997806,0.34465462,243.26,243.18,12.15446471]
[1731909998690,0.34465462,243.26,243.19,4.112]
[1731909998890,0.34465462,243.24,243.19,4.112]
[1731910001007,0.34465462,243.22,243.18,12.15446471]
[1731910001202,0.09367462,243.22,243.19,4.112]
[1731910002488,159.44465462,243.22,243.16,22.43546471]
[1731910002811,0.34465462,243.2,243.14,16.26726471]
[1731910003185,0.09367462,243.18,243.14,4.1128]
[1731910003400,0.09367462,243.18,243.11,26.55096471]
[1731910003401,0.21916462,243.16,243.11,26.55096471]
[1731910006484,0.21916462,243.16,243.08,20.5687]
[1731910006681,159.1,243.18,243.14,12.15446471]
[1731910006898,159.1,243.24,243.16,12.15446471]
[1731910007211,159.1,243.23,243.16,12.15446471]
[1731910007386,0.09367462,243.22,243.16,12.15446471]
[1731910007585,159.1,243.23,243.18,12.15446471]
[1731910008196,0.09367462,243.24,243.11,20.0]
[1731910008385,0.09367462,243.24,243.17,12.15446471]
[1731910008592,26.7295,243.25,243.17,12.15446471]
[1731910008902,26.7295,243.25,243.18,14.3925]
[1731910009991,26.7295,243.25,243.19,12.15446471]
[1731910011202,26.7295,243.25,243.17,12.15446471]
[1731910011407,26.7295,243.25,243.18,14.3925]
[1731910012316,0.25098,243.26,243.2,14.3914]
[1731910012491,82.25446471,243.36,243.2,14.3914]
[1731910012492,159.1,243.35,243.22,12.15446471]
[1731910012807,12.15446471,243.32,243.22,12.15446471]
[1731910013110,0.09367462,243.29,243.2,26.54586471]
[1731910013783,0.21916462,243.29,243.2,26.54586471]
[1731910013980,0.25098,243.29,243.2,26.54586471]
[1731910015407,0.2144645,243.29,243.2,26.54586471]
[1731910015909,0.21916462,243.29,243.2,26.54586471]
[1731910016414,0.21916462,243.29,243.21,7.79044903]
[1731910017121,0.09367462,243.28,243.23,7.79044903]
[1731910017489,159.1,243.36,243.27,7.79044903]
[1731910017805,7.79044903,243.34,243.25,7.79044903]
[1731910018305,12.26316492,243.33,243.24,22.4473903]
[1731910018513,0.09367462,243.33,243.24,10.2779]
[1731910018714,12.26316492,243.33,243.24,22.4473903]
[1731910019006,12.26316492,243.33,243.24,26.5584903]
[1731910019222,0.09367462,243.31,243.24,26.5584903]
[1731910020699,0.25098,243.32,243.24,14.389]
[1731910020700,12.51414492,243.29,243.24,14.389]
[1731910021088,0.34465462,243.26,243.19,10.2798]
[1731910021918,0.09367462,243.24,243.19,10.2798]
[1731910022119,0.21916462,243.22,243.19,10.2798]
[1731910022302,0.25098,243.21,243.19,10.2798]
[1731910022505,0.12549,243.21,243.19,10.2798]
[1731910022813,0.12549,243.19,243.16,4.1124]
[1731910023121,0.12549,243.17,243.16,4.1124]
[1731910023414,0.25098,243.17,243.16,4.1124]
[1731910024406,0.25098,243.17,243.14,10.282]
[1731910025697,0.25098,243.17,243.14,14.3948]
[1731910028311,0.34465462,243.15,243.14,14.3948]
[1731910028623,0.34465462,243.15,243.14,10.282]
[1731910029002,0.25098,243.13,243.12,4.1131]
[1731910029922,0.25098,243.19,243.12,14.396]
[1731910030109,0.09367462,243.18,243.12,14.396]
[1731910030298,0.12549,243.17,243.12,26.5654903]
[1731910033120,0.21916462,243.16,243.12,14.396]
[1731910033324,0.12549,243.15,243.12,14.396]
[1731910033926,0.12549,243.16,243.12,26.5654903]
[1731910034124,159.1,243.19,243.12,26.5654903]
[1731910034125,159.1,243.25,243.15,20.0]
[1731910034336,0.2,243.36,243.15,20.0]
[1731910034337,171.2694903,243.3,243.21,12.1694903]
[1731910034537,159.1,243.29,243.21,12.1694903]
[1731910035019,159.1,243.29,243.22,4.1115]
[1731910035620,0.34465462,243.28,243.22,4.1115]
[1731910035820,12.1694903,243.25,243.21,10.279]
[1731910036128,0.12549,243.24,243.21,10.279]
[1731910036339,159.1,243.23,243.16,14.3936]
[1731910036517,159.22549,243.22,243.16,14.3936]
[1731910037330,159.22549,243.22,243.13,12.1694903]
[1731910037928,0.21916462,243.19,243.13,12.1694903]
[1731910038244,0.25098,243.16,243.11,12.1694903]
[1731910039426,0.25098,243.16,243.12,14.396]
[1731910039922,0.25098,243.14,243.12,14.396]
[1731910040918,0.34465462,243.13,243.12,10.2829]
[1731910041561,0.34465462,243.13,243.1,4.1135]
[1731910041749,0.12549,243.1,243.08,4.1137]
[1731910041930,0.34465462,243.09,243.08,4.1137]
[1731910042343,0.25098,243.09,243.08,4.1137]
[1731910042931,0.25098,243.09,243.07,10.2849]
[1731910043328,0.25098,243.12,243.07,10.2849]
[1731910044639,0.09367462,243.09,243.07,10.2849]
[1731910045060,0.09367462,243.09,243.02,34.9759]
[1731910049056,0.09367462,243.09,243.02,14.402]
[1731910049347,0.21916462,243.07,243.02,14.402]
[1731910049556,0.12549,243.06,243.02,14.402]
[1731910049735,0.25098,243.06,243.02,14.402]
[1731910051066,0.12549,243.04,243.02,14.402]
[1731910051357,0.25098,243.04,243.02,14.402]
[1731910052956,159.1,243.08,243.03,12.1694903]
[1731910053136,159.1,243.08,243.04,12.1694903]
[1731910053455,12.1694903,243.11,243.02,26.5714903]
[1731910053647,0.09367462,243.1,243.02,26.5714903]
[1731910054072,0.34465462,243.1,243.02,26.5714903]
[1731910054369,0.34465462,243.1,243.04,7.80178469]
[1731910054846,0.34465462,243.1,243.05,14.4002]
[1731910056848,0.34465462,243.1,243.05,10.2859]
[1731910058064,8.14643931,243.1,243.05,10.2859]
[1731910058937,0.21916462,243.05,243.03,4.1147]
[1731910059238,0.12549,243.04,243.03,4.1147]
[1731910060044,0.12549,243.04,243.0,10.2878]
[1731910060581,0.12549,243.0,242.97,4.1157]
[1731910060869,0.25098,243.0,242.97,4.1157]
[1731910061735,0.25098,243.0,242.95,10.2899]
[1731910061944,0.21916462,242.99,242.95,10.2899]
[1731910062136,0.12549,242.98,242.95,10.2899]
[1731910062363,0.25098,242.98,242.95,10.2899]
[1731910063068,159.1,243.02,242.95,10.2899]
[1731910063361,7.80178469,243.0,242.95,10.2899]
[1731910063538,0.21916462,242.98,242.95,10.2899]
[1731910063861,0.25098,242.97,242.95,10.2899]
[1731910064052,0.25098,242.97,242.95,9.7899]
[1731910065744,159.1,242.99,242.95,9.7899]
[1731910066038,159.1,242.99,242.95,9.2899]
[1731910066465,159.1,242.99,242.95,17.09168469]
[1731910066847,159.1,242.99,242.97,7.80178469]
[1731910067468,159.1,243.05,242.97,7.80178469]
[1731910067768,0.09367462,243.04,242.98,14.4044]
[1731910067966,0.12549,243.03,242.98,14.4044]
[1731910069565,0.12549,243.03,242.98,10.2889]
[1731910070447,0.25098,243.03,242.98,10.2889]
[1731910071570,0.09367462,242.98,242.91,14.4085]
[1731910071746,0.09367462,242.98,242.91,22.21028469]
[1731910071951,0.12549,242.97,242.93,7.80178469]
[1731910072658,0.25098,243.01,242.95,7.80178469]
[1731910073353,0.25098,243.02,242.94,10.2906]
[1731910073673,0.09367462,243.01,242.94,18.09238469]
[1731910073858,0.09367462,243.01,242.94,10.2906]
[1731910074651,0.09367462,243.01,242.94,14.4068]
[1731910076071,7.89545931,243.01,242.94,14.4068]
[1731910076373,0.25098,243.0,242.94,14.4068]
[1731910077666,0.25098,243.0,242.94,10.2906]
[1731910078666,0.25098,243.0,242.94,14.4068]
[1731910080765,0.25098,243.0,242.95,7.80178469]
[1731910080962,0.25098,243.0,242.94,14.4068]
[1731910082369,0.25098,243.0,242.94,13.4068]
[1731910082559,7.1315,243.06,242.99,7.80178469]
[1731910082871,159.1,243.07,243.01,7.80178469]
[1731910083247,166.90178469,243.1,243.01,7.80178469]
[1731910083449,0.09367462,243.06,242.99,7.80178469]
[1731910084261,0.21916462,243.06,242.99,7.80178469]
[1731910084460,0.25098,243.05,242.95,20.0]
[1731910084780,0.25098,243.05,242.99,7.80178469]
[1731910085657,8.02094931,243.04,242.99,10.2882]
[1731910085857,0.09367462,243.0,242.99,10.2882]
[1731910086076,0.21916462,242.99,242.94,14.4066]
[1731910086275,0.25098,242.98,242.94,14.4066]
[1731910086655,0.21916462,242.97,242.94,10.2904]
[1731910086880,0.25098,242.96,242.94,10.2904]
[1731910087221,30.25098,242.96,242.94,10.2904]
[1731910087478,30.0,242.96,242.94,14.4066]
[1731910087771,30.0,242.96,242.94,10.2904]
[1731910089573,0.25098,242.95,242.94,10.2904]
[1731910090658,30.25098,242.95,242.94,10.2904]
[1731910090866,30.25098,242.95,242.88,22.21208469]
[1731910091176,30.25098,242.95,242.9,7.80178469]
[1731910091762,30.25098,242.95,242.88,22.21208469]
[1731910093281,0.09367462,242.94,242.88,14.4103]
[1731910093468,0.25098,242.93,242.88,14.4103]
[1731910094380,30.25098,242.93,242.88,14.4103]
[1731910095070,0.09367462,242.92,242.88,14.4103]
[1731910095270,0.09367462,242.92,242.85,7.80178469]
[1731910095464,0.25098,242.9,242.85,7.80178469]
[1731910095868,0.25098,242.9,242.82,14.4138]
[1731910095869,0.09367462,242.89,242.82,14.4138]
[1731910096080,0.09367462,242.89,242.82,22.21558469]
[1731910096260,0.25098,242.9,242.84,7.80178469]
[1731910096464,30.0,242.88,242.84,7.80178469]
[1731910096680,0.25098,242.9,242.84,7.80178469]
[1731910097382,0.25098,242.93,242.87,14.4109]
[1731910097572,0.25098,242.93,242.88,7.80178469]
[1731910098160,166.585,243.0,242.92,7.80178469]
[1731910098367,166.90178469,242.99,242.9,7.80178469]
[1731910098564,0.09367462,242.98,242.9,7.80178469]
[1731910099167,0.09367462,242.98,242.87,14.4109]
[1731910099362,0.09367462,242.96,242.89,7.80178469]
[1731910100481,0.09367462,242.94,242.83,24.7086]
[1731910100680,0.34465462,242.94,242.85,7.80178469]
[1731910100991,0.34465462,242.94,242.87,7.80178469]
[1731910101767,0.34465462,242.94,242.88,4.1172]
[1731910102276,0.34465462,242.92,242.88,4.1172]
[1731910102783,0.34465462,242.92,242.86,10.2937]
[1731910103092,0.34465462,242.9,242.81,10.2958]
[1731910103285,0.34465462,242.88,242.81,10.2958]
[1731910103590,0.34465462,242.86,242.81,10.2958]
[1731910104086,0.34465462,242.84,242.71,32.2492]
[1731910104287,0.34465462,242.84,242.76,7.80178469]
[1731910104581,0.34465462,242.84,242.71,32.2492]
[1731910104582,159.44465462,242.84,242.71,32.2492]
[1731910104797,0.34465462,242.82,242.75,7.80178469]
[1731910105371,0.34465462,242.82,242.76,4.1192]
[1731910105570,0.09367462,242.8,242.76,4.1192]
[1731910105789,0.09367462,242.8,242.71,28.1291]
[1731910105790,0.34465462,242.8,242.72,4.1198]
[1731910105974,0.21916462,242.76,242.72,4.1198]
[1731910106166,0.09367462,242.74,242.71,10.3003]
[1731910106471,166.90178469,242.77,242.71,10.3003]
[1731910106472,0.25098,242.73,242.71,10.3003]
[1731910107588,0.34465462,242.74,242.71,10.3003]
[1731910107787,0.34465462,242.74,242.68,4.1206]
[1731910107969,0.25098,242.72,242.68,4.1206]
[1731910108370,0.25098,242.72,242.67,19.1207]
[1731910108771,159.1,242.75,242.67,41.65202797]
[1731910108772,0.25098,242.74,242.67,41.65202797]
[1731910108970,159.1,242.84,242.7,12.22932797]
[1731910109174,7.485,242.86,242.77,12.22932797]
[1731910109393,30.03052797,242.83,242.77,10.2976]
[1731910109712,0.09367462,242.78,242.72,4.1199]
[1731910109983,159.19367462,242.78,242.72,4.1199]
[1731910110193,0.09367462,242.76,242.71,10.2999]
[1731910110601,0.09367462,242.74,242.71,10.2999]
[1731910113084,159.35098,242.75,242.71,10.2999]
[1731910113396,159.1,242.81,242.73,12.22932797]
[1731910113598,0.09367462,242.8,242.73,12.22932797]
[1731910113784,0.09367462,242.78,242.71,22.52922797]
[1731910114198,0.09367462,242.78,242.71,10.2999]
[1731910114897,0.21916462,242.76,242.71,10.2999]
[1731910115115,0.12549,242.75,242.71,10.2999]
[1731910115406,0.12549,242.73,242.68,16.34982797]
[1731910115609,0.21916462,242.72,242.67,15.0]
[1731910115898,0.12549,242.69,242.67,15.0]
[1731910116472,0.09367462,242.68,242.67,15.0]
[1731910116688,0.12549,242.68,242.67,15.0]
[1731910117187,30.0,242.72,242.67,19.1208]
[1731910117378,166.0803,242.76,242.68,12.22932797]
[1731910117573,12.22932797,242.73,242.67,29.4228]
[1731910117780,0.09367462,242.72,242.67,29.4228]
[1731910118189,0.09367462,242.72,242.67,25.302]
[1731910118493,24.12153862,242.75,242.67,25.302]
[1731910118692,0.34465462,242.72,242.67,25.302]
[1731910118894,0.34465462,242.72,242.67,29.4228]
[1731910119277,0.34465462,242.72,242.67,25.302]
[1731910120501,12.32300259,242.68,242.67,15.0]
[1731910120675,12.57398259,242.68,242.67,15.0]
[1731910120871,0.34465462,242.68,242.67,15.0]
[1731910121691,36.35086659,242.68,242.67,15.0]
[1731910122210,24.12153862,242.68,242.67,15.0]
[1731910123990,54.12153862,242.68,242.67,15.0]
[1731910124188,61.10183862,242.68,242.67,15.0]
[1731910124387,131.10183862,242.68,242.67,15.0]
[1731910125110,131.10183862,242.68,242.67,14.7492]
[1731910126796,73.33116659,242.68,242.67,14.7492]
[1731910127109,49.33511797,242.68,242.67,14.7492]
[1731910127283,12.22932797,242.72,242.67,14.7492]
[1731910127684,0.09367462,242.71,242.67,14.7492]
[1731910127884,12.22932797,242.7,242.67,14.7492]
[1731910128098,0.09367462,242.69,242.67,14.7492]
[1731910128405,66.35086659,242.68,242.67,14.7492]
[1731910129402,36.35086659,242.68,242.67,14.7492]
[1731910132185,66.45086659,242.68,242.67,14.7492]
[1731910132917,24.12153862,242.64,242.55,10.3071]
[1731910133223,24.12153862,242.61,242.55,14.4299]
[1731910134195,0.34465462,242.61,242.55,26.65922797]
[1731910135695,0.07276677,242.61,242.55,26.65922797]
[1731910136892,0.07276677,242.61,242.55,14.4299]
[1731910137293,30.07276677,242.61,242.55,14.4299]
[1731910137918,0.12549,242.6,242.55,14.4299]
[1731910140306,0.12549,242.58,242.55,14.4299]
[1731910140507,0.25098,242.58,242.55,14.4299]
[1731910140908,0.12549,242.58,242.55,26.65922797]
[1731910141092,4.1212,242.65,242.57,12.22932797]
[1731910141093,159.1,242.65,242.57,12.22932797]
[1731910141291,159.1,242.68,242.61,12.22932797]
[1731910141719,159.1,242.68,242.63,12.22932797]
[1731910141897,12.22932797,242.71,242.63,12.22932797]
[1731910141898,159.1,242.7,242.63,12.22932797]
[1731910142303,159.1,242.7,242.64,4.1213]
[1731910143123,0.21916462,242.68,242.64,4.1213]
[1731910143322,0.25098,242.67,242.64,14.4246]
[1731910144335,0.25098,242.67,242.64,10.3033]
[1731910152332,0.25098,242.7,242.64,22.53262797]
[1731910152516,0.25098,242.7,242.66,12.22932797]
[1731910152719,159.1,242.71,242.66,12.22932797]
[1731910153032,159.1,242.71,242.68,12.22932797]
[1731910153214,159.1,242.76,242.68,12.22932797]
[1731910153408,159.1,242.75,242.68,12.22932797]
[1731910154233,0.09367462,242.74,242.68,12.22932797]
[1731910154416,0.09367462,242.74,242.69,14.4216]
[1731910154837,0.21916462,242.74,242.69,14.4216]
[1731910155533,0.25098,242.73,242.69,14.4216]
[1731910156216,159.1,242.77,242.7,12.22932797]
[1731910156527,0.09367462,242.77,242.7,12.22932797]
[1731910157813,0.34465462,242.77,242.71,14.4204]